[Event "Asian Amateur-ch Open 2022"]
[Site "Muscat"]
[Date "2022.10.04"]
[Round "8.26"]
[White "Al Abdali, Zeyad Saleh"]
[Black "Al Mamari Mohammed Salim"]
[Result "1/2-1/2"]
[ECO "E12"]
[WhiteElo "1780"]
[BlackElo "1685"]
[Annotator "NA RC COMBH"]
[PlyCount "106"]
[EventDate "2022.09.29"]
[EventType "swiss"]
[EventCountry "OMN"]
[SourceTitle "playchess.com"]
[Source "ChessBase"]
[SourceQuality "1"]
[TimeControl "5400+30"]

1. d4 {[%emt 0:08:59]} Nf6 {[%emt 0:00:11]} 2. c4 {[%emt 0:01:58]} e6 {[%emt 0:00:10]} 3. Nf3 {[%emt 0:00:58]} b6 {[%emt 0:00:49]} 4. a3 {[%emt 0:00:15]} Bb7 {[%emt 0:00:37]} 5. Nc3 {[%emt 0:00:14]} Be7 {[%emt 0:00:54]} 6. d5 {[%emt 0:03:20]} O-O {[%emt 0:06:24]} 7. e4 {[%emt 0:02:55]} exd5 {[%emt 0:03:38]} 8. exd5 {[%emt 0:06:27]} d6 {[%emt 0:05:14]} 9. Be2 {[%emt 0:13:01]} Nfd7 {[%emt 0:02:29]} 10. O-O {[%emt 0:00:19]} Re8 {[%emt 0:00:27]} 11. Nd4 {[%emt 0:02:01]} Bf6 {[%emt 0:01:27]} 12. Nf5 {[%emt 0:02:19]} Bxc3 {[%emt 0:02:10]} 13. bxc3 {[%emt 0:00:11]} Na6 {[%emt 0:01:14]} 14. Bd3 {[%emt 0:12:22]} Ne5 {[%emt 0:02:19]} 15. Bc2 {[%emt 0:00:59]} Nc5 {[%emt 0:04:47]} 16. Be3 {[%emt 0:04:39]} Bc8 {[%emt 0:04:56]} 17. Qh5 {[%emt 0:10:40]} Bxf5 {[%emt 0:14:22]} 18. Qxf5 {[%emt 0:00:47]} g6 {[%emt 0:02:50]} 19. Qf4 {[%emt 0:05:24]} Ncd7 {[%emt 0:01:17]} 20. Bd4 {[%emt 0:02:47]} Qf6 {[%emt 0:08:37]} 21. Qg3 {[%emt 0:03:53]} Qd8 {[%emt 0:00:41]} 22. f4 {[%emt 0:02:28]} Nxc4 {[%emt 0:02:47]} 23. f5 {[%emt 0:00:35]} Nce5 {[%emt 0:00:54]} 24. fxg6 {[%emt 0:02:30]} fxg6 {[%emt 0:01:19]} 25. Rf4 {[%emt 0:01:50]} Qe7 {[%emt 0:01:31]} 26. Bf5 {[%emt 0:01:04]} Rf8 {[%emt 0:02:09]} 27. Be6+ {[%emt 0:00:29]} Kg7 {[%emt 0:02:26]} 28. Rh4 {[%emt 0:02:30]} Rf6 {[%emt 0:01:40]} 29. Qe3 {[%emt 0:00:50]} Kh8 {[%emt 0:04:48]} 30. Re4 {[%emt 0:02:39]} Raf8 {[%emt 0:03:54]} 31. Bxd7 {[%emt 0:00:41]} Qxd7 {[%emt 0:00:05]} 32. Rd1 {[%emt 0:01:41]} Qb5 {[%emt 0:00:40]} 33. h3 {[%emt 0:00:34]} Qxd5 {[%emt 0:01:57]} 34. c4 {[%emt 0:01:06]} Qc6 {[%emt 0:00:58]} 35. Rxe5 {[%emt 0:00:27]} dxe5 {[%emt 0:00:15]} 36. Bxe5 {[%emt 0:00:03]} Kg8 {[%emt 0:00:32]} 37. Bxf6 {[%emt 0:00:23]} Qxf6 {[%emt 0:00:01]} 38. Rd7 {[%emt 0:00:34]} Rf7 {[%emt 0:02:07]} 39. Rd4 {[%emt 0:00:39]} Kg7 {[%emt 0:00:30]} 40. Re4 {[%emt 0:00:33]} a5 {[%emt 0:01:34]} 41. Re6 {[%emt 0:00:08]} Qf1+ {[%emt 0:00:07]} 42. Kh2 {[%emt 0:00:08]} Qf4+ {[%emt 0:00:07]} 43. Qxf4 {[%emt 0:00:29]} Rxf4 {[%emt 0:00:04]} 44. Rc6 {[%emt 0:00:12]} Rf7 {[%emt 0:16:32]} 45. a4 {[%emt 0:00:47]} Kh6 {[%emt 0:00:00]} 46. c5 {[%emt 0:00:10]} bxc5 {[%emt 0:00:00]} 47. Rxc5 {[%emt 0:00:03]} Rf4 {[%emt 0:00:00]} 48. Rxa5 {[%emt 0:00:35]} c5 {[%emt 0:00:00]} 49. Rxc5 {[%emt 0:03:29]} Rxa4 {[%emt 0:00:00]} 50. g4 {[%emt 0:00:16]} Ra7 {[%emt 0:00:00]} 51. Kg3 {[%emt 0:00:14]} Rf7 {[%emt 0:00:00]} 52. Kh4 {[%emt 0:00:14]} Kg7 {[%emt 0:00:00]} 53. Rf5 {[%emt 0:04:11]} Kh6 {[%emt 0:04:30]} 1/2-1/2

[Event "Asian Amateur-ch Open 2022"]
[Site "Muscat"]
[Date "2022.10.04"]
[Round "8.27"]
[White "Jaradat, Othman"]
[Black "Humaidan Mohamed, Alzaabi"]
[Result "1-0"]
[ECO "B43"]
[WhiteElo "1751"]
[BlackElo "1393"]
[Annotator "NA RC COMBH"]
[PlyCount "85"]
[EventDate "2022.09.29"]
[EventType "swiss"]
[EventCountry "OMN"]
[SourceTitle "playchess.com"]
[Source "ChessBase"]
[SourceQuality "1"]
[TimeControl "5400+30"]

1. e4 {[%emt 0:00:04]} c5 {[%emt 0:00:07]} 2. Nf3 {[%emt 0:00:04]} e6 {[%emt 0:00:04]} 3. d4 {[%emt 0:00:11]} cxd4 {[%emt 0:00:09]} 4. Nxd4 {[%emt 0:00:05]} a6 {[%emt 0:00:07]} 5. Nc3 {[%emt 0:00:10]} Qc7 {[%emt 0:00:08]} 6. Be3 {[%emt 0:00:49]} Nf6 {[%emt 0:00:09]} 7. f3 {[%emt 0:00:30]} Bb4 {[%emt 0:00:47]} 8. Qd3 {[%emt 0:06:30]} d5 {[%emt 0:01:04]} 9. exd5 {[%emt 0:02:35]} Nxd5 {[%emt 0:00:36]} 10. Bd2 {[%emt 0:04:59]} Nxc3 {[%emt 0:05:43]} 11. Bxc3 {[%emt 0:01:13]} Bxc3+ {[%emt 0:00:09]} 12. Qxc3 {[%emt 0:02:39]} Qxc3+ {[%emt 0:00:07]} 13. bxc3 {[%emt 0:00:04]} e5 {[%emt 0:01:45]} 14. Nb3 {[%emt 0:00:14]} Nd7 {[%emt 0:04:29]} 15. Bd3 {[%emt 0:00:51]} b6 {[%emt 0:04:01]} 16. c4 {[%emt 0:04:33]} Bb7 {[%emt 0:03:27]} 17. Rb1 {[%emt 0:02:50]} O-O {[%emt 0:07:10]} 18. Na5 {[%emt 0:10:21]} Bxf3 {[%emt 0:00:36]} 19. gxf3 {[%emt 0:01:14]} bxa5 {[%emt 0:00:02]} 20. Kf2 {[%emt 0:01:54]} f5 {[%emt 0:03:21]} 21. Kg2 {[%emt 0:01:23]} Nc5 {[%emt 0:02:40]} 22. Rhe1 {[%emt 0:01:04]} Rae8 {[%emt 0:03:34]} 23. Rb6 {[%emt 0:01:59]} e4 {[%emt 0:03:43]} 24. fxe4 {[%emt 0:01:22]} fxe4 {[%emt 0:00:07]} 25. Be2 {[%emt 0:02:08]} Rf6 {[%emt 0:01:48]} 26. Rxf6 {[%emt 0:01:59]} gxf6 {[%emt 0:02:14]} 27. Rf1 {[%emt 0:00:03]} Kg7 {[%emt 0:00:54]} 28. Rf5 {[%emt 0:02:02]} Rc8 {[%emt 0:06:01]} 29. Kg3 {[%emt 0:03:08]} Nb7 {[%emt 0:02:53]} 30. Kf4 {[%emt 0:04:36]} Rc5 {[%emt 0:02:25]} 31. Rd5 {[%emt 0:03:02]} Rxd5 {[%emt 0:12:42]} 32. cxd5 {[%emt 0:00:02]} Nc5 {[%emt 0:00:21]} 33. Ke3 {[%emt 0:03:41]} f5 {[%emt 0:01:13]} 34. Kd4 {[%emt 0:03:54]} f4 {[%emt 0:00:16]} 35. Kxc5 {[%emt 0:01:15]} f3 {[%emt 0:00:02]} 36. Bxa6 {[%emt 0:04:36]} e3 {[%emt 0:00:10]} 37. d6 {[%emt 0:01:45]} e2 {[%emt 0:00:20]} 38. d7 {[%emt 0:00:22]} e1=Q {[%emt 0:00:25]} 39. d8=Q {[%emt 0:00:31]} Qc3+ {[%emt 0:01:27]} 40. Bc4 {[%emt 0:03:19]} Qb4+ {[%emt 0:00:53]} 41. Kd5 {[%emt 0:03:01]} Qd2+ {[%emt 0:02:12]} 42. Bd3 {[%emt 0:00:07]} f2 {[%emt 0:01:04]} 43. Qe7+ {[%emt 0:01:51]} 1-0

[Event "Asian Amateur-ch Open 2022"]
[Site "Muscat"]
[Date "2022.10.04"]
[Round "8.28"]
[White "Krishanu Sai"]
[Black "Aubrey Armstrong A"]
[Result "1-0"]
[ECO "E65"]
[WhiteElo "1748"]
[BlackElo "1370"]
[Annotator "NA RC COMBH"]
[PlyCount "97"]
[EventDate "2022.09.29"]
[EventType "swiss"]
[EventCountry "OMN"]
[SourceTitle "playchess.com"]
[Source "ChessBase"]
[SourceQuality "1"]
[TimeControl "5400+30"]

1. d4 {[%emt 0:00:04]} Nf6 {[%emt 0:00:08]} 2. Nf3 {[%emt 0:00:12]} g6 {[%emt 0:00:06]} 3. c4 {[%emt 0:00:24]} Bg7 {[%emt 0:00:07]} 4. g3 {[%emt 0:00:05]} O-O {[%emt 0:00:11]} 5. Bg2 {[%emt 0:00:10]} d6 {[%emt 0:00:20]} 6. O-O {[%emt 0:00:19]} Nbd7 {[%emt 0:03:21]} 7. Nc3 {[%emt 0:05:16]} c5 {[%emt 0:02:26]} 8. e4 {[%emt 0:05:34]} cxd4 {[%emt 0:06:56]} 9. Nxd4 {[%emt 0:00:16]} Nb6 {[%emt 0:02:43]} 10. Qd3 {[%emt 0:05:09]} Nfd7 {[%emt 0:13:35]} 11. b3 {[%emt 0:08:18]} a6 {[%emt 0:02:40]} 12. Bb2 {[%emt 0:04:13]} Qc7 {[%emt 0:04:12]} 13. Rfd1 {[%emt 0:04:41]} Ne5 {[%emt 0:05:17]} 14. Qd2 {[%emt 0:03:26]} Qc5 {[%emt 0:02:10]} 15. Nce2 {[%emt 0:14:44]} Bg4 {[%emt 0:11:35]} 16. Rac1 {[%emt 0:01:35]} Nbd7 {[%emt 0:10:25]} 17. h3 {[%emt 0:09:12]} Bxe2 {[%emt 0:01:27]} 18. Qxe2 {[%emt 0:06:11]} Rac8 {[%emt 0:03:48]} 19. Kh2 {[%emt 0:30:11]} Nc6 {[%emt 0:05:49]} 20. Nxc6 {[%emt 0:00:00]} bxc6 {[%emt 0:00:05]} 21. e5 {[%emt 0:00:00]} Bxe5 {[%emt 0:01:39]} 22. Bxe5 {[%emt 0:00:00]} Qxe5 {[%emt 0:00:59]} 23. Qxe5 {[%emt 0:00:00]} Nxe5 {[%emt 0:00:06]} 24. c5 {[%emt 0:00:00]} d5 {[%emt 0:02:55]} 25. Rd4 {[%emt 0:00:00]} e6 {[%emt 0:01:44]} 26. Ra4 {[%emt 0:00:00]} Ra8 {[%emt 0:01:09]} 27. Ra5 {[%emt 0:00:00]} Nd7 {[%emt 0:01:53]} 28. Bf1 {[%emt 0:00:00]} Nb8 {[%emt 0:00:13]} 29. b4 {[%emt 0:00:00]} Rc8 {[%emt 0:00:40]} 30. a4 {[%emt 0:00:00]} Nd7 {[%emt 0:01:30]} 31. Rxa6 {[%emt 0:00:00]} Rxa6 {[%emt 0:00:19]} 32. Bxa6 {[%emt 0:00:00]} Rc7 {[%emt 0:01:19]} 33. b5 {[%emt 0:00:00]} cxb5 {[%emt 0:00:56]} 34. c6 {[%emt 0:00:00]} Nb8 {[%emt 0:00:12]} 35. axb5 {[%emt 0:00:00]} Nxa6 {[%emt 0:03:38]} 36. bxa6 {[%emt 0:00:00]} Kf8 {[%emt 0:00:07]} 37. a7 {[%emt 0:00:00]} Rc8 {[%emt 0:00:15]} 38. Rb1 {[%emt 0:00:00]} Ke7 {[%emt 0:00:17]} 39. Rb8 {[%emt 0:00:00]} Rxc6 {[%emt 0:00:09]} 40. a8=Q {[%emt 0:00:00]} Rc2 {[%emt 0:00:24]} 41. Qa7+ {[%emt 0:00:00]} Kf6 {[%emt 0:00:21]} 42. Rb7 {[%emt 0:00:00]} Ke5 {[%emt 0:00:13]} 43. Rxf7 {[%emt 0:00:00]} d4 {[%emt 0:00:10]} 44. Qb8+ {[%emt 0:00:00]} Ke4 {[%emt 0:00:14]} 45. Qd6 {[%emt 0:00:00]} e5 {[%emt 0:00:32]} 46. Re7 {[%emt 0:00:00]} Rxf2+ {[%emt 0:00:22]} 47. Kg1 {[%emt 0:00:00]} Rf5 {[%emt 0:00:14]} 48. g4 {[%emt 0:00:00]} Rg5 {[%emt 0:00:14]} 49. Kf2 {[%emt 0:15:00]} 1-0

[Event "Asian Amateur-ch Open 2022"]
[Site "Muscat"]
[Date "2022.10.04"]
[Round "8.30"]
[White "Ibnu, Iwan Schani"]
[Black "Al Rashdi, Mohammed"]
[Result "1-0"]
[ECO "C67"]
[WhiteElo "1689"]
[BlackElo "1322"]
[Annotator "NA RC COMBH"]
[PlyCount "83"]
[EventDate "2022.09.29"]
[EventType "swiss"]
[EventCountry "OMN"]
[SourceTitle "playchess.com"]
[Source "ChessBase"]
[SourceQuality "1"]
[TimeControl "5400+30"]

1. e4 {[%emt 0:00:02]} e5 {[%emt 0:00:16]} 2. Nf3 {[%emt 0:00:06]} Nc6 {[%emt 0:00:19]} 3. Bb5 {[%emt 0:00:06]} Nf6 {[%emt 0:00:33]} 4. O-O {[%emt 0:00:19]} Nxe4 {[%emt 0:00:26]} 5. d4 {[%emt 0:01:03]} Nd6 {[%emt 0:09:29]} 6. Bxc6 {[%emt 0:01:51]} bxc6 {[%emt 0:00:45]} 7. dxe5 {[%emt 0:01:17]} Nb7 {[%emt 0:02:51]} 8. c4 {[%emt 0:02:17]} Be7 {[%emt 0:02:25]} 9. Nc3 {[%emt 0:00:18]} O-O {[%emt 0:00:26]} 10. Bf4 {[%emt 0:08:36]} d6 {[%emt 0:03:56]} 11. Qe2 {[%emt 0:04:32]} d5 {[%emt 0:20:03]} 12. Rad1 {[%emt 0:03:22]} Be6 {[%emt 0:00:39]} 13. Nd4 {[%emt 0:01:47]} Qd7 {[%emt 0:00:24]} 14. Nxc6 {[%emt 0:08:46]} Bg4 {[%emt 0:22:43]} 15. Nxe7+ {[%emt 0:00:56]} Qxe7 {[%emt 0:18:42]} 16. Qxg4 {[%emt 0:00:11]} dxc4 {[%emt 0:01:15]} 17. Bh6 {[%emt 0:00:18]} Qxe5 {[%emt 0:00:29]} 18. Bf4 {[%emt 0:02:04]} Qf6 {[%emt 0:02:34]} 19. Nd5 {[%emt 0:06:04]} Qe6 {[%emt 0:02:59]} 20. Qg3 {[%emt 0:00:16]} Rad8 {[%emt 0:01:37]} 21. Nxc7 {[%emt 0:14:23]} Qc6 {[%emt 0:01:23]} 22. Rxd8 {[%emt 0:00:15]} Rxd8 {[%emt 0:00:31]} 23. Qa3 {[%emt 0:08:46]} Rd7 {[%emt 0:01:33]} 24. Qxa7 {[%emt 0:00:26]} h6 {[%emt 0:02:25]} 25. Na6 {[%emt 0:02:38]} Nd8 {[%emt 0:01:55]} 26. Qe3 {[%emt 0:01:36]} Kh7 {[%emt 0:00:50]} 27. Nb4 {[%emt 0:00:11]} Qf6 {[%emt 0:00:31]} 28. Qe4+ {[%emt 0:00:02]} g6 {[%emt 0:00:33]} 29. Qe8 {[%emt 0:00:44]} Qe7 {[%emt 0:01:05]} 30. Qxe7 {[%emt 0:02:33]} Rxe7 {[%emt 0:00:08]} 31. Bd2 {[%emt 0:01:13]} Re2 {[%emt 0:00:20]} 32. Bc3 {[%emt 0:00:02]} Ne6 {[%emt 0:00:42]} 33. Re1 {[%emt 0:00:07]} Rxe1+ {[%emt 0:00:28]} 34. Bxe1 {[%emt 0:00:02]} Nc5 {[%emt 0:00:14]} 35. Kf1 {[%emt 0:00:38]} g5 {[%emt 0:00:08]} 36. Ke2 {[%emt 0:00:07]} Kg6 {[%emt 0:00:04]} 37. Ke3 {[%emt 0:00:34]} Ne6 {[%emt 0:01:14]} 38. Nc6 {[%emt 0:00:51]} f6 {[%emt 0:00:42]} 39. a4 {[%emt 0:02:26]} Nc5 {[%emt 0:00:11]} 40. a5 {[%emt 0:01:11]} Kf7 {[%emt 0:00:31]} 41. Kd4 {[%emt 0:01:06]} Na6 {[%emt 0:00:21]} 42. Kxc4 {[%emt 0:00:30]} 1-0

[Event "Asian Amateur-ch Open 2022"]
[Site "Muscat"]
[Date "2022.10.04"]
[Round "8.33"]
[White "Salim Issa, Ali Shamas"]
[Black "Salem Muhsan Shuaib"]
[Result "1/2-1/2"]
[ECO "D53"]
[WhiteElo "1886"]
[BlackElo "1227"]
[Annotator "NA RC COMBH"]
[PlyCount "72"]
[EventDate "2022.09.29"]
[EventType "swiss"]
[EventCountry "OMN"]
[SourceTitle "playchess.com"]
[Source "ChessBase"]
[SourceQuality "1"]
[TimeControl "5400+30"]

1. d4 {[%emt 0:00:02]} d5 {[%emt 0:00:09]} 2. c4 {[%emt 0:00:07]} e6 {[%emt 0:00:05]} 3. Nc3 {[%emt 0:00:06]} Nf6 {[%emt 0:00:06]} 4. Bg5 {[%emt 0:00:05]} Be7 {[%emt 0:00:10]} 5. e3 {[%emt 0:00:20]} O-O {[%emt 0:00:21]} 6. Bd3 {[%emt 0:00:05]} dxc4 {[%emt 0:00:09]} 7. Bxc4 {[%emt 0:00:21]} c5 {[%emt 0:02:50]} 8. Nge2 {[%emt 0:00:11]} Nc6 {[%emt 0:02:16]} 9. O-O {[%emt 0:00:38]} cxd4 {[%emt 0:00:51]} 10. exd4 {[%emt 0:00:01]} Nd5 {[%emt 0:05:47]} 11. Bxe7 {[%emt 0:00:08]} Nxc3 {[%emt 0:01:58]} 12. bxc3 {[%emt 0:01:24]} Qxe7 {[%emt 0:00:57]} 13. Bd3 {[%emt 0:00:03]} Rd8 {[%emt 0:02:28]} 14. f4 {[%emt 0:00:10]} b6 {[%emt 0:10:36]} 15. Be4 {[%emt 0:00:13]} Bb7 {[%emt 0:00:52]} 16. Qb1 {[%emt 0:00:20]} g6 {[%emt 0:01:01]} 17. h3 {[%emt 0:00:39]} Rac8 {[%emt 0:05:26]} 18. Rc1 {[%emt 0:01:46]} Rc7 {[%emt 0:05:32]} 19. Kh2 {[%emt 0:00:34]} Na5 {[%emt 0:09:21]} 20. Bxb7 {[%emt 0:09:01]} Nxb7 {[%emt 0:00:32]} 21. Qe4 {[%emt 0:00:21]} Nd6 {[%emt 0:01:45]} 22. Qd3 {[%emt 0:00:17]} Nf5 {[%emt 0:02:15]} 23. a4 {[%emt 0:00:37]} Qd6 {[%emt 0:04:24]} 24. g4 {[%emt 0:00:11]} Ne7 {[%emt 0:01:15]} 25. Qg3 {[%emt 0:00:01]} Rdc8 {[%emt 0:01:31]} 26. a5 {[%emt 0:00:21]} Nd5 {[%emt 0:02:48]} 27. axb6 {[%emt 0:05:12]} Nxb6 {[%emt 0:02:03]} 28. Ra6 {[%emt 0:00:16]} Qd5 {[%emt 0:02:02]} 29. Rca1 {[%emt 0:00:04]} Qc4 {[%emt 0:02:59]} 30. Qf3 {[%emt 0:00:13]} Nd5 {[%emt 0:01:20]} 31. Rxa7 {[%emt 0:00:08]} Rxa7 {[%emt 0:00:44]} 32. Rxa7 {[%emt 0:00:02]} Nxc3 {[%emt 0:00:51]} 33. Nxc3 {[%emt 0:00:05]} Qxc3 {[%emt 0:00:03]} 34. Qxc3 {[%emt 0:01:58]} Rxc3 {[%emt 0:00:11]} 35. Kg2 {[%emt 0:00:21]} Rd3 {[%emt 0:01:17]} 36. Rd7 {[%emt 0:00:03]} Kg7 {[%emt 0:01:18]} 1/2-1/2

[Event "Asian Amateur-ch Open 2022"]
[Site "Muscat"]
[Date "2022.10.05"]
[Round "9.1"]
[White "Zahmati, Sobhan"]
[Black "Mohammed Tareq Abbood Al-Latoo"]
[Result "1-0"]
[ECO "E04"]
[WhiteElo "1926"]
[BlackElo "1957"]
[Annotator "TA"]
[PlyCount "71"]
[EventDate "2022.09.29"]
[EventType "swiss"]
[EventCountry "OMN"]
[SourceTitle "playchess.com"]
[Source "ChessBase"]
[SourceQuality "1"]
[TimeControl "5400+30"]

{[%evp 20,71,21,26,44,29,47,47,46,54,50,33,45,54,55,45,26,33,42,43,92,91,90,87,89,84,86,82,86,93,207,193,211,195,451,454,444,454,453,440,439,435,445,390,456,465,449,443,489,487,487,475,449,421]} 1. d4 {[%emt 0:00:02]} Nf6 {[%emt 0:06:02]} 2. Nf3 {[%emt 0:00:02]} e6 {[%emt 0:00:20]} 3. g3 {[%emt 0:00:06]} c5 {[%emt 0:01:04]} 4. c4 {[%emt 0:00:11]} d5 {[%emt 0:00:14]} 5. Bg2 {[%emt 0:00:19]} Nc6 {[%emt 0:06:35]} 6. O-O {[%emt 0:00:06]} dxc4 {[%emt 0:02:12]} 7. dxc5 {[%emt 0:00:02]} Qxd1 {[%emt 0:01:48]} 8. Rxd1 {[%emt 0:00:06]} Bxc5 {[%emt 0:00:03]} 9. Nbd2 {[%emt 0:00:18]} c3 {[%emt 0:00:45]} 10. bxc3 {[%emt 0:00:04]} O-O {[%emt 0:07:37]} 11. Nb3 {[%emt 0:00:01]} Bb6 {[%emt 0:00:11] E04: Open Catalan: 5 Nf3.} 12. c4 {[%emt 0:00:26]} Ne4 {[%emt 0:09:50]} 13. e3 {[%emt 0:13:52]} e5 {[%emt 0:12:59] White is slightly better.} 14. Bb2 {[%emt 0:10:12] [#]} Re8 $146 {[%emt 0:06:49]} ({Predecessor:} 14... Be6 15. Nxe5 Nxe5 16. Bxe5 Nc5 17. Bd6 Nxb3 18. axb3 Rfd8 19. Bxb7 Bg4 20. Bxa8 Bxd1 21. Rxd1 {1-0 (30) Mikhalevski,V (2573)-Suasnabar,J (1952) Chess.com INT 2021}) 15. Rac1 {[%emt 0:08:49]} f5 {[%emt 0:08:16]} 16. Nfd2 {[%emt 0:10:21]} Nxd2 {[%emt 0:08:54]} 17. Bd5+ {[%emt 0:00:14]} Be6 {[%emt 0:00:32] Threatens to win with ...Nxb3.} 18. Rxd2 {[%emt 0:00:17]} Bf7 {[%emt 0:10:22]} 19. Rcd1 {[%emt 0:05:36]} a5 {[%emt 0:05:52]} (19... Rac8 $14) 20. Bxf7+ $16 {[%emt 0:02:23] White leaves nothing to chance now.} Kxf7 {[%emt 0:00:02]} 21. Rd7+ {[%emt 0:00:00]} Re7 {[%emt 0:00:23]} 22. Ba3 {[%emt 0:00:33] White is much more active.} Nb4 {[%emt 0:00:48]} 23. Rxe7+ {[%emt 0:00:33]} Kxe7 {[%emt 0:00:01]} 24. Rd5 {[%emt 0:00:11]} Bc7 {[%emt 0:06:16] [#]} (24... Ke6 $16 25. Rb5 Bc7) 25. Nxa5 $1 $18 {[%emt 0:03:48][%mdl 512]} Bd6 {[%emt 0:01:07]} (25... Bxa5 $2 {[#]} 26. Rxa5 $1 {[%mdl 512]} Rxa5 27. Bxb4+ Kd7 28. Bxa5 $18) 26. Rb5 {[%emt 0:01:23] Strongly threatening c5.} ({And not} 26. Nxb7 Nxd5 27. Bxd6+ Ke6 28. cxd5+ Kxd5 $17) 26... b6 {[%emt 0:02:34] Inhibits c5.} (26... Ke6 {was called for.} 27. Bxb4 Bxb4) 27. Bxb4 {[%emt 0:00:37]} bxa5 {[%emt 0:00:36]} 28. Rxe5+ {[%emt 0:00:01]} Kd7 {[%emt 0:00:32]} 29. Bxd6 {[%emt 0:00:12]} Kxd6 {[%emt 0:00:02]} 30. Rxf5 {[%emt 0:00:07][%mdl 4096] Endgame KR-KR} a4 {[%emt 0:00:27]} 31. Kg2 {[%emt 0:00:25]} Rb8 {[%emt 0:00:20]} 32. Rb5 {[%emt 0:00:45] White is clearly winning.} Rc8 {[%emt 0:01:21]} 33. Rb4 {[%emt 0:00:58]} Ra8 {[%emt 0:00:06]} 34. a3 {[%emt 0:00:14]} Kc5 {[%emt 0:00:37]} 35. Kf3 {[%emt 0:00:07]} Ra7 {[%emt 0:00:25]} 36. Ke2 {[%emt 0:00:15] Weighted Error Value: White=0.04 (flawless) /Black=0.30} 1-0

[Event "Asian Amateur-ch Open 2022"]
[Site "Muscat"]
[Date "2022.10.05"]
[Round "9.2"]
[White "Mahmoody, M. Sadegh"]
[Black "Fooladi, Behrooz"]
[Result "0-1"]
[ECO "D02"]
[WhiteElo "1914"]
[BlackElo "1928"]
[Annotator "TA"]
[PlyCount "56"]
[EventDate "2022.09.29"]
[EventType "swiss"]
[EventCountry "OMN"]
[SourceTitle "playchess.com"]
[Source "ChessBase"]
[SourceQuality "1"]
[TimeControl "5400+30"]

{[%evp 11,56,1,9,-23,0,-27,-36,-47,-50,-30,-37,-55,-36,-121,-122,-244,-243,-261,-252,-263,-256,-392,-394,-366,-343,-446,-359,-535,-519,-831,-818,-911,-898,-904,-878,-841,-698,-893,-870,-1013,-916,-1702,-1968,-4998,-2503,-2352,-2205]} 1. d4 {[%emt 0:00:03]} Nf6 {[%emt 0:01:01]} 2. Nf3 {[%emt 0:00:07]} g6 {[%emt 0:00:14]} 3. g3 {[%emt 0:00:05]} d5 {[%emt 0:00:12]} 4. Bg2 {[%emt 0:00:05]} Bg7 {[%emt 0:00:11]} 5. Nbd2 {[%emt 0:00:32]} O-O {[%emt 0:00:12]} 6. O-O {[%emt 0:00:15]} c5 {[%emt 0:08:56]} 7. e3 {[%emt 0:00:50] [#] D02: 1 d4 d5 2 Nf3 sidelines, including 2...Nf6 3 g3 and 2...Nf6 3 Bf4.} Bf5 $146 {[%emt 0:02:15]} ({Predecessor:} 7... Nc6 8. c3 Bf5 9. Ne5 Nxe5 10. dxe5 Ng4 11. Qb3 Nxe5 12. Qxb7 e6 13. e4 dxe4 14. Nxe4 Rb8 15. Qxa7 {1-0 (38) Ju,W (2567)-Muzychuk,M (2544) Huaian 2017}) 8. dxc5 {[%emt 0:01:41]} Na6 {[%emt 0:02:58][%cal Bb8a6,Ba6c5,Bc5d3][%mdl 32]} 9. Nd4 {[%emt 0:02:10] Black is slightly better.} Bg4 $1 {[%emt 0:00:12]} 10. f3 {[%emt 0:00:35]} Bd7 {[%emt 0:00:07]} 11. c4 {[%emt 0:08:28]} Nxc5 {[%emt 0:01:44]} 12. b4 {[%emt 0:12:51]} (12. cxd5 $15 Nxd5 13. N2b3 Nxb3 14. Qxb3) 12... Nd3 {[%emt 0:04:33]} 13. Ba3 {[%emt 0:02:48]} (13. Qb3 $17 {was necessary.} Nxc1 14. Raxc1) 13... e5 $19 {[%emt 0:00:41]} 14. N4b3 {[%emt 0:04:18] [#]} dxc4 $1 {[%emt 0:00:57]} 15. Nxc4 {[%emt 0:03:59]} Bb5 {[%emt 0:00:53]} 16. Nbd2 {[%emt 0:09:03]} (16. Nba5 $142 Qd5 17. Nb2) 16... Rc8 {[%emt 0:03:51][%cal Ba8c8,Bc8c2,Bc2d2][%mdl 32]} 17. Qb3 {[%emt 0:00:52]} Qd5 {[%emt 0:01:42]} 18. Na5 {[%emt 0:05:51]} b6 {[%emt 0:02:39]} 19. Qxd5 {[%emt 0:03:32]} (19. Bh3 $142) 19... Nxd5 {[%emt 0:00:04] Black is clearly winning.} 20. Nb7 {[%emt 0:00:21]} (20. Nac4 $142 Bxc4 21. Nxc4 Rxc4 22. Rad1) 20... Nxe3 {[%emt 0:02:02] [#] Threatens to win with ...Rc2.} 21. Nd6 {[%emt 0:00:21]} Rc2 {[%emt 0:00:02]} 22. Nxb5 {[%emt 0:04:53]} Rxd2 {[%emt 0:04:15]} 23. Bh3 {[%emt 0:00:27]} Nxf1 {[%emt 0:00:13]} 24. Bxf1 {[%emt 0:00:06]} e4 {[%emt 0:00:30][%cal Be5e4,Be4f3][%mdl 32]} 25. Rb1 {[%emt 0:00:11]} a6 {[%emt 0:00:38]} 26. Nc7 {[%emt 0:01:56]} Bd4+ {[%emt 0:00:11]} (26... Rc8 $142 27. Bxd3 Rxd3 28. fxe4 Rxc7) 27. Kh1 {[%emt 0:00:04]} exf3 {[%emt 0:03:17] ( -> ...Nf2+)} 28. Bxd3 {[%emt 0:01:17]} Rxd3 {[%emt 0:00:11] Black took control after the opening.  Weighted Error Value: White=1.11/Black=0.22 (precise)} 0-1